bitfinex-derivatives/quotes_ETHF0:USTF0_20241231
["timestamp","ask_amount","ask_price","bid_price","bid_amount"]
[1735659935004,0.875,3419.3,3418.9,3.2078]
[1735659935206,0.2929,3419.1,3419.0,0.2929]
[1735659936412,0.29289,3419.1,3418.9,3.5007]
[1735659936612,7.72723048,3419.3,3418.9,3.5007]
[1735659936814,0.2929,3419.0,3418.9,3.50071]
[1735659937114,0.2929,3419.0,3418.9,3.2078]
[1735659937315,0.29294,3418.6,3418.3,0.29296]
[1735659937609,0.29297,3418.2,3418.1,4.86638484]
[1735659937805,0.8527,3418.5,3418.1,4.86638484]
[1735659938005,0.8527,3418.5,3418.2,0.29297]
[1735659938201,0.29297,3418.3,3418.1,4.86638484]
[1735659938411,0.29297,3418.3,3418.1,4.86637484]
[1735659938614,0.29297,3418.2,3418.1,4.57340484]
[1735659938814,0.8527,3418.5,3418.1,4.57340484]
[1735659939111,5.71499393,3418.4,3418.0,4.0957]
[1735659939308,5.71499393,3418.4,3418.1,0.29298]
[1735659939510,5.71499393,3418.4,3418.0,4.0957]
[1735659939709,0.29297,3418.2,3418.1,0.29298]
[1735659940014,5.71499393,3418.4,3418.0,4.0957]
[1735659940217,4.86080698,3418.3,3418.2,0.29297]
[1735659940407,4.56783698,3418.3,3418.2,0.29297]
[1735659941415,5.71499393,3418.5,3418.3,0.29296]
[1735659941416,4.56783698,3418.4,3418.3,0.29296]
[1735659943215,5.71499393,3418.6,3418.3,5.0]
[1735659943415,5.71499393,3418.6,3418.5,5.83863589]
[1735659943612,0.29292,3418.8,3418.5,5.54568589]
[1735659943811,5.71499393,3418.9,3418.5,5.54568589]
[1735659944113,6.00790393,3418.9,3418.8,0.29292]
[1735659944314,5.71499393,3418.9,3418.8,0.29292]
[1735659944611,5.71499393,3418.9,3418.8,3.88880589]
[1735659944814,3.42559117,3418.9,3418.8,3.88880589]
[1735659945616,1.51515117,3418.9,3418.8,11.22669178]
[1735659945908,1.17e-06,3418.9,3418.8,8.88880589]
[1735659946112,5.71499393,3419.7,3419.6,0.29285]
[1735659946302,5.71499393,3419.7,3419.6,3.50065]
[1735659946908,0.29284,3419.8,3419.7,0.29284]
[1735659947215,0.4501,3420.0,3419.6,3.2078]
[1735659947514,0.74292,3420.0,3419.9,0.29283]
[1735659949216,0.4501,3420.0,3419.9,0.29283]
[1735659950119,0.4501,3420.0,3419.6,3.2078]
[1735659950320,0.4501,3420.0,3419.9,0.29283]
[1735659950519,0.4501,3420.0,3419.6,3.2078]
[1735659950716,0.4501,3420.0,3419.8,0.29283]
[1735659950916,0.4501,3420.0,3419.6,3.2078]
[1735659951513,0.29284,3419.7,3419.6,3.2078]
[1735659952012,0.29287,3419.4,3419.2,0.29288]
[1735659952217,0.4464,3419.3,3419.2,0.29288]
[1735659952612,0.4464,3419.3,3419.1,3.2078]
[1735659952919,0.29289,3419.2,3419.1,3.2078]
[1735659953119,0.4464,3419.3,3419.1,3.2078]
[1735659953521,0.29289,3419.2,3419.0,0.2929]
[1735659954016,0.4464,3419.3,3418.9,0.29291]
[1735659954017,0.2929,3419.1,3418.9,0.29291]
[1735659954523,0.4464,3419.3,3418.6,3.2078]
[1735659954823,0.29293,3418.7,3418.6,3.2078]
[1735659955009,3.2078,3418.8,3418.1,0.4294]
[1735659955210,0.29295,3418.5,3418.3,0.29296]
[1735659955418,1.3056,3418.6,3418.4,0.29295]
[1735659955614,1.3056,3418.6,3418.1,0.4294]
[1735659956316,1.3056,3418.6,3418.0,2.33788589]
[1735659956519,0.29297,3418.2,3417.9,3.2078]
[1735659956722,0.29297,3418.2,3418.0,0.29298]
[1735659957220,1.3056,3418.6,3418.0,0.29298]
[1735659957422,0.73237,3418.5,3417.9,3.2078]
[1735659957717,0.29298,3418.1,3417.9,3.2078]
[1735659957924,0.4299,3418.0,3417.9,3.5008]
[1735659958224,0.4299,3418.0,3417.9,3.2078]
[1735659958427,0.72289,3418.0,3417.9,3.2078]
[1735659958916,0.4299,3418.0,3417.8,0.293]
[1735659959119,0.4299,3418.0,3417.5,0.4496]
[1735659959318,0.4299,3418.0,3417.9,0.293]
[1735659959513,0.4412,3418.4,3417.8,3.2078]
[1735659959723,0.4412,3418.4,3418.3,0.29296]
[1735659960223,6.59929393,3418.6,3418.2,3.2078]
[1735659960526,6.59929393,3418.6,3418.3,0.29296]
[1735659960829,6.59929393,3418.6,3418.2,3.50077]
[1735659960830,0.29295,3418.5,3418.2,3.50077]
[1735659961224,0.4412,3418.4,3417.8,0.4276]
[1735659961525,0.29298,3418.1,3417.9,0.293]
[1735659961917,3.649,3418.4,3417.8,0.293]
[1735659962227,0.29298,3418.1,3417.9,0.293]
[1735659962524,3.649,3418.4,3417.8,0.73252]
[1735659962820,3.649,3418.4,3418.3,0.29296]
[1735659963026,0.4412,3418.4,3418.3,0.29296]
[1735659963221,0.4412,3418.4,3415.1,1.06761044]
[1735659963222,3.649,3418.4,3417.6,3.2078]
[1735659963528,3.649,3418.4,3417.7,2.33788589]
[1735659963826,1.17724,3418.6,3418.2,3.2078]
[1735659964024,0.8843,3418.6,3418.0,3.2078]
[1735659964225,0.29297,3418.2,3418.0,0.29298]
[1735659964626,0.29297,3418.2,3417.6,1.256]
[1735659964826,0.29299,3418.1,3417.8,0.293]
[1735659965223,0.29299,3418.1,3417.9,0.293]
[1735659966023,0.29302,3417.6,3417.5,3.2078]
[1735659966434,5.54568589,3417.8,3417.0,3.2078]
[1735659966727,0.73246,3418.2,3417.3,0.29304]
[1735659966728,0.8656,3417.5,3417.3,0.29304]
[1735659966930,0.8656,3417.5,3417.4,0.29304]
[1735659967125,0.8656,3417.5,3417.0,3.2078]
[1735659967531,1.15863,3417.5,3417.3,0.29304]
[1735659967930,0.8656,3417.5,3417.4,0.29304]
[1735659969333,0.8656,3417.5,3417.0,3.2078]
[1735659969726,0.8656,3417.5,3417.4,0.29304]
[1735659970733,3.2078,3418.2,3417.4,5.54568589]
[1735659970931,0.4491,3418.0,3417.5,0.4233]
[1735659971134,0.4491,3418.0,3417.4,3.2078]
[1735659971334,0.29303,3417.5,3417.4,3.2078]
[1735659971535,0.29303,3417.5,3417.3,0.29304]
[1735659971728,0.29303,3417.5,3417.0,4.077]
[1735659971729,0.29302,3417.7,3417.6,0.29302]
[1735659971924,0.29301,3417.8,3417.6,0.29302]
[1735659972132,0.4491,3418.0,3417.8,0.293]
[1735659972630,0.4491,3418.0,3417.9,0.293]
[1735659972828,0.459,3418.1,3418.0,0.29299]
[1735659973029,0.459,3418.1,3417.8,3.2078]
[1735659973235,0.29299,3418.0,3417.8,0.293]
[1735659973930,0.459,3418.1,3418.0,0.29299]
[1735659975128,0.72077,3418.2,3418.1,0.29298]
[1735659975129,0.4278,3418.2,3418.1,0.29298]
[1735659975336,5.45726174,3418.6,3417.9,0.7325]
[1735659975537,0.9098,3418.6,3418.5,0.29295]
[1735659975838,1.20274,3418.6,3418.5,0.29295]
[1735659976227,1.20274,3418.6,3418.4,0.29295]
[1735659976433,0.29295,3418.5,3418.3,0.29296]
[1735659976633,0.29297,3418.2,3418.1,3.2078]
[1735659977231,0.29297,3418.2,3417.8,0.451]
[1735659977232,0.9098,3418.6,3417.8,0.451]
[1735659977436,0.29297,3418.2,3418.1,0.29298]
[1735659977735,0.9098,3418.6,3418.1,0.29298]
[1735659977934,0.9098,3418.6,3417.9,0.4304]
[1735659978133,0.29297,3418.3,3418.2,0.29297]
[1735659978332,0.29296,3418.4,3418.2,0.29297]
[1735659978830,0.29296,3418.4,3417.9,0.4304]
[1735659978831,0.9098,3418.6,3418.0,3.2078]
[1735659979033,0.9098,3418.6,3418.5,0.29295]
[1735659979231,0.9098,3418.6,3418.4,0.29295]
[1735659979232,0.29295,3418.5,3418.4,0.29295]
[1735659979434,0.9098,3418.6,3418.0,3.94028]
[1735659979632,0.9098,3418.6,3418.5,0.29295]
[1735659979834,4.54746174,3418.9,3418.8,0.29292]
[1735659980039,4.84037174,3418.9,3418.8,0.29292]
[1735659980241,0.29293,3418.7,3418.5,0.4317]
[1735659980434,0.29292,3418.8,3418.6,0.29294]
[1735659980835,0.29292,3418.8,3418.4,3.2078]
[1735659981036,0.29292,3418.8,3418.6,0.29293]
[1735659981240,3.63668589,3419.1,3418.4,3.2078]
[1735659981435,1.2988,3419.1,3418.5,0.437]
[1735659981636,3.2078,3419.2,3419.1,0.29289]
[1735659981837,3.2078,3419.2,3418.6,0.73235]
[1735659982033,3.50069,3419.2,3419.0,0.2929]
[1735659982532,0.29289,3419.1,3419.0,0.2929]
[1735659983140,3.2078,3419.2,3418.5,0.437]
[1735659983343,0.29291,3418.9,3418.6,0.29294]
[1735659983545,0.2929,3419.1,3418.9,0.2929]
[1735659983839,0.2929,3419.1,3419.0,0.2929]
[1735659984042,2.78398589,3419.4,3418.5,0.437]
[1735659984236,0.2929,3419.0,3418.9,0.29291]
[1735659984741,0.2929,3419.1,3418.9,0.2929]
[1735659984942,2.78398589,3419.4,3418.6,0.73235]
[1735659985139,0.2929,3419.1,3419.0,0.2929]
[1735659985340,0.29289,3419.2,3419.0,0.2929]
[1735659985539,2.78398589,3419.4,3419.1,0.29289]
[1735659985746,2.78398589,3419.4,3418.7,0.73233]
[1735659985939,0.29288,3419.3,3419.2,0.29288]
[1735659986538,0.4461,3419.4,3419.3,0.29288]
[1735659986746,0.73897,3419.4,3419.3,0.29288]
[1735659987045,0.4461,3419.4,3419.3,0.29288]
[1735659987843,0.73897,3419.4,3419.3,0.29288]
[1735659988145,0.4461,3419.4,3419.3,0.29288]
[1735659988741,0.73897,3419.4,3419.3,0.29288]
[1735659988942,0.4461,3419.4,3419.0,0.8798]
[1735659989142,0.29289,3419.2,3419.1,0.29289]
[1735659989446,3.2078,3419.2,3418.4,3.2078]
[1735659989648,2.33788589,3418.9,3418.4,3.2078]
[1735659989846,0.29295,3418.5,3418.4,3.2078]
[1735659990243,1.3341,3418.8,3418.4,3.2078]
[1735659990244,0.29294,3418.6,3418.4,3.50075]
[1735659990448,0.29295,3418.5,3418.4,3.2078]
[1735659990852,0.29294,3418.6,3418.4,3.2078]
[1735659991542,0.29295,3418.5,3418.4,3.2078]
[1735659991743,1.3341,3418.8,3418.4,3.2078]
[1735659991943,0.29295,3418.5,3418.4,3.2078]
[1735659992343,0.29296,3418.3,3417.9,4.075]
[1735659992542,4.5419,3418.8,3418.1,0.29297]
[1735659992752,0.29296,3418.4,3418.1,0.29297]
[1735659992953,0.4323,3418.3,3417.9,3.2078]
[1735659993154,0.29299,3418.0,3417.8,0.293]
[1735659993354,2.77018589,3418.3,3417.6,0.4313]
[1735659993355,1.1923,3417.9,3417.6,0.29301]
[1735659993850,0.8993,3417.9,3417.5,3.2078]
[1735659994051,0.29301,3417.8,3417.6,0.29301]
[1735659994253,0.29301,3417.7,3417.6,0.29301]
[1735659994650,0.29301,3417.8,3417.7,0.29301]
[1735659995253,0.29302,3417.7,3417.6,0.29302]
[1735659995455,1.6318,3417.9,3417.3,0.73054]
[1735659995657,1.6318,3417.9,3417.1,0.4313]
[1735659995658,0.8993,3417.9,3417.1,0.4313]
[1735659995950,0.8993,3417.9,3417.1,0.8623]
[1735659996158,0.29304,3417.5,3417.4,0.29303]
[1735659996653,0.29305,3417.3,3417.2,0.29305]
[1735659996952,0.73254,3417.7,3417.1,0.8623]
[1735659997151,2.33788589,3417.4,3416.7,0.2931]
[1735659997353,2.33788589,3417.4,3416.8,0.29309]
[1735659997550,0.29308,3417.0,3416.6,3.2078]
[1735659998054,0.29307,3417.1,3417.0,0.29307]
[1735659998254,3.2078,3417.6,3416.6,5.54568589]
[1735659998554,0.29303,3417.5,3417.4,0.29304]
[1735659998856,4.54746174,3417.4,3417.3,0.29305]
[1735659999656,4.54746174,3417.4,3417.3,0.73315]
[1735659999854,0.44,3418.2,3417.3,0.73315]
[1735659999855,0.73297,3418.2,3417.4,0.73261]
[1735660000062,4.54746174,3418.3,3418.2,0.29297]
[1735660000855,4.54746174,3418.3,3418.2,2.63085589]
[1735660001257,4.84038174,3418.8,3418.7,0.29293]
[1735660001460,4.54746174,3418.8,3418.7,0.29293]
[1735660002654,0.29292,3418.9,3418.8,0.29292]
[1735660002852,0.72551,3419.0,3418.9,0.29291]
[1735660003159,4.54746174,3419.3,3419.2,0.29289]
[1735660003657,4.54746174,3419.3,3418.9,3.2078]
[1735660003853,0.2929,3419.1,3419.0,0.2929]
[1735660004055,0.29289,3419.2,3418.5,3.2078]
[1735660004257,0.29289,3419.1,3419.0,0.2929]
[1735660004650,2.33788589,3419.2,3418.5,3.2078]
[1735660004852,0.29289,3419.1,3418.6,0.29293]
[1735660005052,3.07012589,3419.2,3418.5,3.2078]
[1735660005260,0.29294,3418.6,3418.5,3.2078]
[1735660005862,0.29294,3418.6,3418.5,3.50075]
[1735660006153,0.29294,3418.6,3418.5,3.2078]
[1735660006354,0.29296,3418.4,3418.3,0.29296]
[1735660006556,0.29297,3418.2,3418.1,3.50077]
[1735660006858,0.4523,3418.5,3417.7,3.2078]
[1735660007053,2.33788589,3418.3,3417.7,3.2078]
[1735660007255,0.29299,3418.0,3417.8,0.293]
[1735660007455,0.293,3417.9,3417.8,0.293]
[1735660007862,0.29299,3418.0,3417.8,0.293]
[1735660008758,3.41372224,3418.2,3418.1,0.29298]
[1735660009657,3.41372224,3418.2,3418.1,3.50078]
[1735660010357,0.4523,3418.5,3418.4,0.29295]
[1735660010557,0.74525,3418.5,3418.4,0.29295]
[1735660010767,0.4523,3418.5,3418.1,3.2078]
[1735660010959,0.29297,3418.2,3418.1,3.2078]
[1735660011154,0.29297,3418.2,3417.4,0.4548]
[1735660011155,0.4523,3418.5,3417.7,3.2078]
[1735660011662,0.29298,3418.1,3417.9,0.293]
[1735660012059,0.29301,3417.8,3417.7,3.2078]
[1735660012259,0.293,3417.9,3417.7,3.2078]
[1735660012459,0.4414,3418.0,3417.7,3.2078]
[1735660012661,0.4414,3418.0,3417.9,0.293]
[1735660013060,0.4377,3418.2,3418.0,0.29298]
[1735660013366,0.4377,3418.2,3418.1,0.29298]
[1735660013962,0.4377,3418.2,3417.7,3.2078]
[1735660014257,0.29298,3418.1,3417.8,0.293]
[1735660014459,0.29298,3418.1,3417.9,0.29299]
[1735660014658,0.4377,3418.2,3417.7,3.2078]
[1735660014859,0.4377,3418.2,3417.8,0.293]
[1735660014860,0.29298,3418.1,3417.8,0.293]
[1735660015059,0.29298,3418.1,3417.9,0.29299]
[1735660015459,0.4377,3418.2,3417.4,0.4548]
[1735660015964,0.4377,3418.2,3417.3,3.2078]
[1735660016166,0.29303,3417.6,3417.5,0.29303]
[1735660016562,0.4463,3418.0,3417.3,3.2078]
[1735660016864,0.29303,3417.6,3417.5,0.29303]
[1735660017069,0.29303,3417.5,3417.4,0.29303]
[1735660017470,0.29303,3417.6,3417.3,3.2078]
[1735660017660,1.18714,3417.4,3417.3,3.2078]
[1735660017968,3.41372224,3417.9,3417.3,3.2078]
[1735660017969,0.29303,3417.6,3417.4,0.29303]
[1735660018168,3.41372224,3417.9,3417.3,3.2078]
[1735660018169,0.8941,3417.8,3417.3,3.2078]
[1735660018471,3.41372224,3417.8,3417.7,0.29301]
[1735660018667,3.41372224,3417.8,3417.7,3.50081]
[1735660019670,0.4311,3418.2,3417.7,3.2078]
[1735660019871,0.29298,3418.1,3418.0,0.29298]
[1735660020062,0.4311,3418.2,3418.1,0.29298]
[1735660020262,0.4311,3418.2,3417.7,3.2078]
[1735660020471,0.29299,3418.0,3417.9,0.29299]
[1735660020670,0.293,3417.9,3417.8,0.293]
[1735660021059,0.4311,3418.2,3417.3,4.38131]
[1735660021060,0.4311,3418.2,3417.3,3.6487]
[1735660021274,0.4339,3417.8,3417.3,3.2078]
[1735660021465,0.29302,3417.7,3417.5,0.29302]
[1735660021665,0.29302,3417.6,3417.5,0.29302]
[1735660021861,0.4339,3417.8,3417.3,3.2078]
[1735660022172,0.29307,3417.0,3416.8,6.86010727]
[1735660022362,3.50087,3417.0,3416.8,6.86010727]
[1735660022565,3.2078,3417.0,3416.4,3.87470484]
[1735660022766,2.33788589,3416.8,3416.2,3.2078]
[1735660023573,2.33788589,3416.8,3416.4,0.29312]
[1735660023766,2.33788589,3416.8,3416.2,3.2078]
[1735660024267,0.29311,3416.6,3416.3,0.29313]
[1735660024868,0.29311,3416.7,3416.3,0.29313]
[1735660025066,0.8583,3416.9,3416.2,3.2078]
[1735660025264,0.29313,3416.3,3416.2,3.2078]
[1735660025468,0.29316,3416.0,3415.7,0.29318]
[1735660025665,0.4597,3416.2,3415.6,3.50099]
[1735660025871,0.29317,3415.9,3415.6,3.2078]
[1735660026073,0.29317,3415.9,3415.5,0.2932]
[1735660026372,2.80216795,3415.9,3415.0,3.2078]
[1735660026572,2.80216795,3415.9,3415.4,0.29321]
[1735660026771,0.29316,3416.0,3415.6,0.29319]
[1735660026967,0.4304,3416.1,3415.1,6.89370908]
[1735660027173,0.29316,3416.0,3415.7,0.29318]
[1735660027675,0.4304,3416.1,3415.1,6.89370908]
[1735660027972,0.29318,3415.8,3415.1,6.89370908]
[1735660028176,0.29316,3416.0,3415.6,0.29319]
[1735660028576,0.4304,3416.1,3415.4,3.2078]
[1735660028769,0.4304,3416.1,3416.0,0.29316]
[1735660028969,0.4304,3416.1,3415.9,0.29316]
[1735660029269,0.4304,3416.1,3416.0,0.29316]
[1735660030667,0.4304,3416.1,3415.4,3.94083]
[1735660030668,3.6449,3416.6,3415.4,3.2078]
[1735660030877,4.0725,3416.6,3415.8,3.2078]
[1735660031064,4.36561,3416.6,3416.3,0.29313]
[1735660031466,3.2078,3416.6,3416.5,0.29312]
[1735660031667,3.41080442,3416.8,3416.5,0.29311]
[1735660031871,3.41080442,3416.8,3416.2,3.2078]
[1735660032068,0.29311,3416.7,3416.3,0.29313]
[1735660032270,0.8514,3416.9,3416.3,0.29313]
[1735660032671,0.29312,3416.5,3416.2,3.50094]
[1735660033075,2.80216795,3416.7,3415.8,3.6415]
[1735660033277,0.29313,3416.4,3416.0,0.29316]
[1735660033577,0.29316,3416.0,3415.8,3.2078]
[1735660033980,0.913,3415.9,3415.8,3.2078]
[1735660034175,1.20617,3415.9,3415.8,3.2078]
[1735660035078,3.2078,3416.5,3415.8,3.2078]
[1735660035379,0.29312,3416.5,3416.0,0.29315]
[1735660035579,0.29311,3416.6,3416.0,0.29315]
[1735660035776,3.41080442,3416.7,3415.9,0.9081]
[1735660035969,3.70390442,3416.7,3416.3,0.29313]
[1735660036182,0.2931,3416.7,3416.3,0.29313]
[1735660036386,0.29312,3416.5,3416.2,0.29314]
[1735660036674,0.9153,3416.8,3415.8,3.2078]
[1735660036880,0.29315,3416.2,3415.8,3.50097]
[1735660037183,0.29313,3416.3,3416.0,0.29315]
[1735660037578,3.2078,3416.5,3415.8,3.2078]
[1735660037579,0.29315,3416.2,3415.9,0.29316]
[1735660037971,0.29314,3416.3,3415.8,3.2078]
[1735660038182,0.29313,3416.4,3416.2,0.29314]
[1735660038378,3.2078,3416.5,3415.8,3.2078]
[1735660038575,0.9153,3416.8,3415.8,3.2078]
[1735660038786,0.9153,3416.8,3415.9,1.16083]
[1735660038986,0.9153,3416.8,3416.4,0.29312]
[1735660039178,0.9153,3416.8,3415.9,0.4279]
[1735660039381,0.9153,3416.8,3416.6,0.2931]
[1735660039382,1.2084,3416.8,3416.6,0.2931]
[1735660039582,0.9153,3416.8,3416.2,3.2078]
[1735660039781,0.2931,3416.7,3416.5,0.29311]
[1735660039982,0.9153,3416.8,3416.2,3.2078]
[1735660040183,0.9153,3416.8,3416.3,0.29313]
[1735660040384,0.29312,3416.5,3416.3,0.29313]
[1735660040579,0.9153,3416.8,3415.9,0.886]
[1735660040784,0.29311,3416.7,3416.5,0.29311]
[1735660041186,0.29311,3416.6,3416.0,0.73291]
[1735660041383,0.29311,3416.6,3415.9,0.886]
[1735660041586,0.9153,3416.8,3415.9,0.886]
[1735660042475,3.2078,3416.6,3415.8,3.2078]
[1735660042681,2.80216795,3416.7,3415.1,0.73308]
[1735660042682,3.2078,3416.1,3415.4,3.501]
[1735660042882,0.2932,3415.6,3415.4,0.29321]
[1735660043081,0.881,3416.0,3415.1,0.8986]
[1735660043281,0.29324,3415.2,3415.0,3.50104]
[1735660043487,0.29322,3415.3,3415.1,0.29323]
[1735660043683,0.29322,3415.4,3415.2,0.29322]
[1735660044177,0.4356,3415.7,3415.0,3.2078]
[1735660044582,0.29321,3415.4,3415.2,0.29322]
[1735660044882,0.4356,3415.7,3415.0,3.2078]
[1735660045082,0.2932,3415.6,3415.1,0.29324]
[1735660045286,0.4356,3415.7,3415.1,0.4287]
[1735660045585,0.72879,3415.7,3415.5,0.2932]
[1735660045787,0.881,3416.0,3415.1,0.4287]
[1735660045984,0.29318,3415.8,3415.1,0.8511]
[1735660046289,0.29319,3415.7,3415.5,0.2932]
[1735660046886,0.29318,3415.8,3415.5,0.2932]
[1735660047088,0.29318,3415.8,3415.6,0.29319]
[1735660047487,0.881,3416.0,3415.4,3.2078]
[1735660047688,0.29317,3415.9,3415.6,0.29319]
[1735660047885,0.881,3416.0,3415.5,0.2932]
[1735660048094,0.881,3416.0,3415.1,0.8511]
[1735660048392,0.29322,3415.4,3415.1,0.29323]
[1735660048579,0.29322,3415.3,3415.1,0.29323]
[1735660048981,0.29322,3415.4,3415.1,0.29324]
[1735660049191,0.4372,3415.8,3415.0,4.4618]
[1735660049694,0.29318,3415.7,3415.1,0.29323]
[1735660049890,0.2932,3415.5,3415.2,0.29323]
[1735660050087,0.4372,3415.8,3415.0,3.2078]
[1735660050395,0.29318,3415.8,3415.5,0.2932]
[1735660050784,1.17417,3416.0,3415.6,0.29319]
[1735660050996,0.29318,3415.8,3415.0,3.2078]
[1735660051198,0.29318,3415.8,3415.4,0.29321]
[1735660051399,0.29318,3415.8,3415.4,0.2932]
[1735660052202,0.29319,3415.7,3415.4,0.29321]
[1735660052496,3.2078,3416.5,3415.5,1.6747]
[1735660052497,6.00996795,3416.5,3415.5,1.6747]
[1735660052691,0.4203,3416.4,3416.1,0.29314]
[1735660052894,0.71343,3416.4,3416.0,0.29315]
[1735660053096,0.71343,3416.4,3415.6,3.6488]
[1735660053097,0.4203,3416.4,3415.6,3.6488]
[1735660053299,0.29314,3416.3,3415.9,0.29316]
[1735660053491,0.71343,3416.4,3416.0,0.29316]
[1735660053692,0.4203,3416.4,3416.1,0.29314]
[1735660054100,0.4203,3416.4,3416.1,3.2078]
[1735660054302,3.41080442,3417.2,3416.9,0.29307]
[1735660054503,3.41080442,3417.2,3417.1,0.29306]
[1735660056004,0.4507,3417.9,3417.6,0.29302]
[1735660056005,0.29301,3417.8,3417.6,0.29302]
[1735660056198,0.29301,3417.8,3417.7,0.29301]
[1735660056399,0.4507,3417.9,3417.5,3.2078]
[1735660056600,0.7437,3417.9,3417.7,0.29301]
[1735660057002,0.29301,3417.8,3417.6,0.29302]
[1735660058800,0.4507,3417.9,3417.1,3.2078]
[1735660059005,0.29304,3417.4,3417.1,4.75486]
[1735660059206,3.2078,3417.6,3416.7,3.6702]
[1735660059611,3.2078,3417.6,3416.7,3.2078]
[1735660059612,0.29309,3416.8,3416.7,3.2078]
[1735660059800,3.2078,3417.2,3416.4,1.254]
[1735660060001,0.73263,3417.3,3416.3,3.2078]
[1735660060002,3.2078,3416.8,3416.3,3.2078]
[1735660060199,2.80216795,3417.0,3416.3,0.29313]
[1735660060401,0.29311,3416.6,3416.3,0.29313]
[1735660060601,3.2078,3416.9,3416.1,3.2078]
[1735660060809,0.29312,3416.5,3416.2,0.29314]
[1735660060998,0.29311,3416.6,3416.3,0.29313]
[1735660061203,3.94051,3416.9,3415.7,1.254]
[1735660061405,0.4528,3416.5,3415.7,1.254]
[1735660061607,0.29313,3416.4,3415.7,1.254]
[1735660062206,0.4528,3416.5,3416.2,0.29314]
[1735660062504,0.4528,3416.5,3415.7,1.254]
[1735660062505,0.4528,3416.5,3416.1,3.2078]
[1735660062708,0.4528,3416.5,3416.2,0.29314]
[1735660063007,0.4528,3416.5,3416.1,3.2078]
[1735660063303,3.2078,3416.9,3416.6,0.2931]
[1735660063504,0.29312,3416.5,3416.2,0.29314]
[1735660063709,0.29312,3416.5,3416.1,3.2078]
[1735660063710,0.29312,3416.5,3416.1,3.50095]
[1735660064008,0.29313,3416.4,3416.1,3.50095]
[1735660064211,3.2078,3416.9,3416.1,3.50095]
[1735660064409,0.2931,3416.8,3416.4,0.29312]
[1735660064611,0.29309,3416.9,3416.6,0.29311]
[1735660065108,3.41080442,3417.0,3416.2,0.4304]
[1735660065311,3.41080442,3417.0,3416.7,0.29309]
[1735660065509,0.29308,3417.0,3416.6,0.2931]
[1735660066102,4.29500442,3417.1,3417.0,0.29307]
[1735660066304,3.41080442,3417.1,3417.0,0.29307]
[1735660066511,3.41080442,3417.1,3417.0,3.50087]
[1735660067110,3.41080442,3417.4,3417.3,0.29305]
[1735660067306,3.41080442,3417.4,3417.2,0.29305]
[1735660067806,3.41080442,3417.4,3417.3,0.29305]
[1735660068207,3.41080442,3417.4,3417.0,3.2078]
[1735660068411,0.29305,3417.3,3417.1,0.29306]
[1735660068712,3.41080442,3417.7,3417.0,3.2078]
[1735660068913,0.29305,3417.3,3417.1,0.29306]
[1735660069812,3.70383442,3417.6,3417.4,0.29303]
[1735660070015,0.29303,3417.5,3417.4,0.29303]
[1735660070508,3.70383442,3417.6,3417.4,0.29303]
[1735660070711,3.41080442,3417.6,3417.5,0.29303]
[1735660071114,0.29302,3417.7,3417.6,0.29302]
[1735660071115,3.41080442,3417.7,3417.6,0.29302]
[1735660071411,3.70382442,3417.7,3417.5,0.29303]
[1735660071611,3.41080442,3417.7,3417.6,0.29302]
[1735660072208,3.70380442,3417.9,3417.4,3.2078]
[1735660072607,3.41080442,3417.9,3417.8,0.293]
[1735660072813,3.41080442,3417.9,3417.8,3.5008]
[1735660073415,0.29299,3418.0,3417.9,0.293]
[1735660073614,0.293,3417.8,3417.7,1.253]
[1735660073811,3.41080442,3418.1,3417.4,3.2078]
[1735660074117,0.29303,3417.6,3417.5,0.29302]
[1735660074314,0.4613,3418.0,3417.4,3.2078]
[1735660074617,0.293,3417.9,3417.8,0.293]
[1735660074811,0.4613,3418.0,3417.4,3.2078]
[1735660075017,0.4517,3418.1,3418.0,0.29299]
[1735660075817,3.41080442,3418.3,3417.8,3.2078]
[1735660076013,3.41080442,3418.3,3418.2,0.29297]
[1735660076207,3.41080442,3418.3,3417.8,3.2078]
[1735660076410,0.29298,3418.2,3418.1,0.29297]
[1735660076616,0.29298,3418.2,3417.8,3.2078]
[1735660076815,0.29298,3418.1,3418.0,0.29298]
[1735660077017,0.29299,3418.0,3417.9,0.29299]
[1735660077217,0.293,3417.9,3417.4,3.2078]
[1735660077420,0.29301,3417.8,3417.4,3.2078]
[1735660077713,0.29301,3417.8,3417.6,0.29302]
[1735660077914,0.293,3417.9,3417.4,3.2078]
[1735660078719,3.2078,3418.2,3417.4,3.2078]
[1735660078917,0.73239,3418.4,3417.4,3.2078]
[1735660079220,0.73239,3418.4,3417.6,0.29302]
[1735660079221,1.0254,3418.2,3417.6,0.29302]
[1735660079413,0.29301,3417.8,3417.6,0.29302]
[1735660080316,3.2078,3417.9,3417.4,3.2078]
[1735660080521,0.29303,3417.5,3417.4,3.50084]
[1735660080720,3.2078,3418.4,3417.4,3.2078]
[1735660080922,0.29296,3418.3,3418.2,0.29297]
[1735660081220,4.0964,3418.4,3418.1,0.29298]
[1735660081416,0.29298,3418.2,3418.1,0.29298]
[1735660082019,4.0964,3418.4,3417.8,3.6632]
[1735660082228,0.29297,3418.3,3418.2,0.29297]
[1735660082520,4.0964,3418.4,3417.8,3.6632]
[1735660082820,0.8886,3418.4,3418.3,0.29296]
[1735660083020,3.41080442,3418.7,3418.6,0.29294]
[1735660083318,3.6575,3418.9,3418.2,3.2078]
[1735660083625,0.29295,3418.5,3418.3,0.29296]
[1735660083921,4.3898,3418.9,3418.2,3.2078]